[Event "Titled Tuesday Blitz November 01 Early 2022"]
[White "Turutin, Alexander"]
[Black "Osmonbekov, Talaibek"]
[WhiteFideId "4180623"]
[BlackFideId "2017253"]
[WhiteElo "2402"]
[BlackElo "2135"]
[Result "1-0"]
[Round "02"]
[TimeControl "180+1"]
[Date "2022.11.02"]
[WhiteClock "0:00:41"]
[BlackClock "0:00:13"]

1. e4 {[%clk 0:02:59]}  c5 {[%clk 0:02:59]} 2. Nc3 {[%clk 0:02:58]}  a6 {[%clk 0:02:59]} 3. f4 {[%clk 0:02:58]}  b5 {[%clk 0:02:59]} 4. Nf3 {[%clk 0:02:58]}  Bb7 {[%clk 0:03:00]} 5. d3 {[%clk 0:02:55]}  e6 {[%clk 0:02:59]} 6. a3 {[%clk 0:02:52]}  Nf6 {[%clk 0:02:59]} 7. Be2 {[%clk 0:02:44]}  Be7 {[%clk 0:02:59]} 8. O-O {[%clk 0:02:44]}  O-O {[%clk 0:02:58]} 9. e5 {[%clk 0:02:41]}  Nd5 {[%clk 0:02:57]} 10. Bd2 {[%clk 0:02:40]}  f5 {[%clk 0:02:54]} 11. Nxd5 {[%clk 0:02:35]}  Bxd5 {[%clk 0:02:52]} 12. c4 {[%clk 0:02:35]}  bxc4 {[%clk 0:02:38]} 13. dxc4 {[%clk 0:02:35]}  Be4 {[%clk 0:02:39]} 14. Bc3 {[%clk 0:02:32]}  Nc6 {[%clk 0:02:36]} 15. Qd2 {[%clk 0:02:29]}  d5 {[%clk 0:02:32]} 16. exd6 {[%clk 0:02:27]}  Qxd6 {[%clk 0:02:31]} 17. Qxd6 {[%clk 0:02:20]}  Bxd6 {[%clk 0:02:31]} 18. Ng5 {[%clk 0:02:21]}  Rfe8 {[%clk 0:02:23]} 19. Nxe4 {[%clk 0:01:50]}  fxe4 {[%clk 0:02:22]} 20. Rad1 {[%clk 0:01:50]}  Nd4 {[%clk 0:02:21]} 21. Bg4 {[%clk 0:01:36]}  e5 {[%clk 0:02:12]} 22. f5 {[%clk 0:01:32]}  Be7 {[%clk 0:01:16]} 23. Rde1 {[%clk 0:01:27]}  Bf6 {[%clk 0:01:07]} 24. Rxe4 {[%clk 0:01:26]}  Rab8 {[%clk 0:01:08]} 25. Bd1 {[%clk 0:01:18]}  Red8 {[%clk 0:01:02]} 26. g4 {[%clk 0:01:14]}  h6 {[%clk 0:01:02]} 27. Kg2 {[%clk 0:01:14]}  Kf7 {[%clk 0:00:58]} 28. Kg3 {[%clk 0:01:12]}  Rb3 {[%clk 0:00:44]} 29. Bxb3 {[%clk 0:01:10]}  Nxb3 {[%clk 0:00:43]} 30. Bxe5 {[%clk 0:01:01]}  Rd3+ {[%clk 0:00:40]} 31. Kg2 {[%clk 0:00:57]}  Nd2 {[%clk 0:00:38]} 32. Rd1 {[%clk 0:00:47]}  Nxe4 {[%clk 0:00:32]} 33. Rxd3 {[%clk 0:00:48]}  Bxe5 {[%clk 0:00:31]} 34. Re3 {[%clk 0:00:48]}  Bxb2 {[%clk 0:00:31]} 35. Rxe4 {[%clk 0:00:48]}  Bxa3 {[%clk 0:00:31]} 36. Re6 {[%clk 0:00:48]}  a5 {[%clk 0:00:31]} 37. Kf3 {[%clk 0:00:45]}  Bb4 {[%clk 0:00:31]} 38. Ra6 {[%clk 0:00:45]}  Bd2 {[%clk 0:00:25]} 39. h4 {[%clk 0:00:45]}  Be1 {[%clk 0:00:25]} 40. g5 {[%clk 0:00:44]}  Bxh4 {[%clk 0:00:23]} 41. g6+ {[%clk 0:00:41]}  Ke7 {[%clk 0:00:23]} 42. Ra7+ {[%clk 0:00:41]}  Kf6 {[%clk 0:00:23]} 43. Ke4 {[%clk 0:00:40]}  a4 {[%clk 0:00:18]} 44. Rxa4 {[%clk 0:00:40]}  h5 {[%clk 0:00:17]} 45. Ra7 {[%clk 0:00:38]}  Bf2 {[%clk 0:00:17]} 46. Rf7+ {[%clk 0:00:38]}  Kg5 {[%clk 0:00:17]} 47. Rxg7 {[%clk 0:00:39]}  Bd4 {[%clk 0:00:17]} 48. Rh7 {[%clk 0:00:39]}  h4 {[%clk 0:00:16]} 49. g7 {[%clk 0:00:39]}  Bxg7 {[%clk 0:00:14]} 50. Rxg7+ {[%clk 0:00:40]}  Kf6 {[%clk 0:00:13]} 51. Rg6+ {[%clk 0:00:41]}  Kf7 {[%clk 0:00:13]} 52. Rh6 {[%clk 0:00:41]} 1-0


[Site "https://www.chess.com"]

[Event "Titled Tuesday Blitz November 01 Early 2022"]
[White "Vachylia, Andrii"]
[Black "Srebrnic, Marko"]
[WhiteFideId "14137224"]
[BlackFideId "14603616"]
[WhiteElo "2318"]
[BlackElo "2340"]
[Result "1-0"]
[Round "02"]
[TimeControl "180+1"]
[Date "2022.11.02"]
[WhiteClock "0:00:45"]
[BlackClock "0:00:01"]

1. e4 {[%clk 0:02:56]}  c5 {[%clk 0:02:57]} 2. Nf3 {[%clk 0:02:56]}  Nc6 {[%clk 0:02:57]} 3. Bb5 {[%clk 0:02:56]}  g6 {[%clk 0:02:57]} 4. Bxc6 {[%clk 0:02:56]}  dxc6 {[%clk 0:02:57]} 5. d3 {[%clk 0:02:56]}  Bg7 {[%clk 0:02:57]} 6. h3 {[%clk 0:02:54]}  e5 {[%clk 0:02:57]} 7. O-O {[%clk 0:02:54]}  Qe7 {[%clk 0:02:57]} 8. Nc3 {[%clk 0:02:55]}  Nf6 {[%clk 0:02:57]} 9. Be3 {[%clk 0:02:55]}  Nd7 {[%clk 0:02:57]} 10. Qd2 {[%clk 0:02:56]}  Nf8 {[%clk 0:02:56]} 11. Bh6 {[%clk 0:02:56]}  Bxh6 {[%clk 0:02:54]} 12. Qxh6 {[%clk 0:02:57]}  f6 {[%clk 0:02:54]} 13. Qe3 {[%clk 0:02:57]}  Ne6 {[%clk 0:02:54]} 14. Ne2 {[%clk 0:02:57]}  O-O {[%clk 0:02:45]} 15. Nd2 {[%clk 0:02:57]}  b6 {[%clk 0:02:38]} 16. a4 {[%clk 0:02:56]}  Bb7 {[%clk 0:02:27]} 17. f4 {[%clk 0:02:53]}  exf4 {[%clk 0:02:25]} 18. Nxf4 {[%clk 0:02:54]}  Nxf4 {[%clk 0:02:26]} 19. Qxf4 {[%clk 0:02:55]}  Rad8 {[%clk 0:02:21]} 20. Nc4 {[%clk 0:02:50]}  Bc8 {[%clk 0:02:13]} 21. Rae1 {[%clk 0:02:44]}  Be6 {[%clk 0:02:12]} 22. Ne3 {[%clk 0:02:44]}  c4 {[%clk 0:02:08]} 23. dxc4 {[%clk 0:02:38]}  Qc5 {[%clk 0:02:02]} 24. b3 {[%clk 0:02:36]}  Rd2 {[%clk 0:01:45]} 25. Rf2 {[%clk 0:02:36]}  Rxf2 {[%clk 0:01:41]} 26. Qxf2 {[%clk 0:02:36]}  Qe5 {[%clk 0:01:36]} 27. Nf1 {[%clk 0:02:30]}  Rd8 {[%clk 0:01:34]} 28. Nd2 {[%clk 0:02:28]}  Qd4 {[%clk 0:01:11]} 29. Qxd4 {[%clk 0:02:27]}  Rxd4 {[%clk 0:01:12]} 30. Nf3 {[%clk 0:02:27]}  Rd8 {[%clk 0:00:49]} 31. Kf2 {[%clk 0:02:27]}  h6 {[%clk 0:00:44]} 32. Ke2 {[%clk 0:02:24]}  Kf7 {[%clk 0:00:42]} 33. Rd1 {[%clk 0:02:24]}  Rxd1 {[%clk 0:00:40]} 34. Kxd1 {[%clk 0:02:25]}  Ke7 {[%clk 0:00:35]} 35. Kd2 {[%clk 0:02:25]}  Kd6 {[%clk 0:00:35]} 36. Ke3 {[%clk 0:02:25]}  Kc5 {[%clk 0:00:26]} 37. Kd3 {[%clk 0:02:24]}  Kb4 {[%clk 0:00:19]} 38. e5 {[%clk 0:01:32]}  fxe5 {[%clk 0:00:18]} 39. Nxe5 {[%clk 0:01:32]}  Kc5 {[%clk 0:00:18]} 40. Kc3 {[%clk 0:01:25]}  g5 {[%clk 0:00:16]} 41. Nd3+ {[%clk 0:01:26]}  Kd6 {[%clk 0:00:16]} 42. Kd4 {[%clk 0:01:26]}  c5+ {[%clk 0:00:12]} 43. Ke4 {[%clk 0:01:26]}  Bc8 {[%clk 0:00:10]} 44. Ke3 {[%clk 0:01:20]}  Ke6 {[%clk 0:00:09]} 45. g3 {[%clk 0:01:18]}  Bb7 {[%clk 0:00:09]} 46. h4 {[%clk 0:01:18]}  Kf5 {[%clk 0:00:08]} 47. hxg5 {[%clk 0:01:18]}  hxg5 {[%clk 0:00:09]} 48. Ne1 {[%clk 0:01:16]}  Kg4 {[%clk 0:00:08]} 49. Kf2 {[%clk 0:01:16]}  Be4 {[%clk 0:00:08]} 50. Ng2 {[%clk 0:01:14]}  Kf5 {[%clk 0:00:04]} 51. Ne3+ {[%clk 0:01:15]}  Ke5 {[%clk 0:00:05]} 52. Ke2 {[%clk 0:01:14]}  Bc6 {[%clk 0:00:04]} 53. Kd3 {[%clk 0:01:13]}  Be4+ {[%clk 0:00:03]} 54. Kd2 {[%clk 0:01:13]}  Bc6 {[%clk 0:00:04]} 55. c3 {[%clk 0:01:11]}  Be4 {[%clk 0:00:03]} 56. b4 {[%clk 0:01:10]}  Bc6 {[%clk 0:00:03]} 57. Nd1 {[%clk 0:01:09]}  Bxa4 {[%clk 0:00:03]} 58. Nb2 {[%clk 0:01:07]}  Bc6 {[%clk 0:00:03]} 59. Nd3+ {[%clk 0:01:07]}  Kd6 {[%clk 0:00:02]} 60. Ke3 {[%clk 0:01:08]}  a5 {[%clk 0:00:02]} 61. g4 {[%clk 0:00:48]}  a4 {[%clk 0:00:01]} 62. Nc1 {[%clk 0:00:45]} 1-0


[Site "https://www.chess.com"]

[Event "Titled Tuesday Blitz November 01 Early 2022"]
[White "Vakhania, Alexandra"]
[Black "Jaskolka, Tomasz"]
[WhiteFideId "13602560"]
[BlackFideId "1170791"]
[WhiteElo "2053"]
[BlackElo "2126"]
[Result "1/2-1/2"]
[Round "02"]
[TimeControl "180+1"]
[Date "2022.11.02"]
[WhiteClock "0:00:19"]
[BlackClock "0:01:03"]

1. d4 {[%clk 0:03:00]}  d5 {[%clk 0:02:58]} 2. Nf3 {[%clk 0:02:59]}  Nf6 {[%clk 0:02:57]} 3. Bg5 {[%clk 0:02:56]}  c6 {[%clk 0:02:55]} 4. Nbd2 {[%clk 0:02:55]}  Bf5 {[%clk 0:02:54]} 5. e3 {[%clk 0:02:54]}  e6 {[%clk 0:02:55]} 6. Bd3 {[%clk 0:02:52]}  Bg6 {[%clk 0:02:45]} 7. Qe2 {[%clk 0:02:47]}  Nbd7 {[%clk 0:02:45]} 8. h3 {[%clk 0:02:38]}  Be7 {[%clk 0:02:44]} 9. O-O {[%clk 0:02:36]}  O-O {[%clk 0:02:42]} 10. Ne5 {[%clk 0:02:32]}  Nxe5 {[%clk 0:02:41]} 11. dxe5 {[%clk 0:02:31]}  Nd7 {[%clk 0:02:42]} 12. Bxe7 {[%clk 0:02:28]}  Qxe7 {[%clk 0:02:42]} 13. Bxg6 {[%clk 0:02:28]}  hxg6 {[%clk 0:02:42]} 14. f4 {[%clk 0:02:29]}  f6 {[%clk 0:02:41]} 15. exf6 {[%clk 0:02:28]}  gxf6 {[%clk 0:02:41]} 16. c3 {[%clk 0:02:17]}  Kg7 {[%clk 0:02:41]} 17. e4 {[%clk 0:02:13]}  Rae8 {[%clk 0:02:37]} 18. Rae1 {[%clk 0:02:03]}  Nb6 {[%clk 0:02:15]} 19. e5 {[%clk 0:01:58]}  f5 {[%clk 0:02:14]} 20. Nf3 {[%clk 0:01:55]}  c5 {[%clk 0:02:10]} 21. Ng5 {[%clk 0:01:39]}  Rh8 {[%clk 0:01:56]} 22. Ra1 {[%clk 0:01:33]}  Rd8 {[%clk 0:01:52]} 23. a4 {[%clk 0:01:30]}  d4 {[%clk 0:01:51]} 24. cxd4 {[%clk 0:01:23]}  Rxd4 {[%clk 0:01:50]} 25. a5 {[%clk 0:01:23]}  Nd5 {[%clk 0:01:49]} 26. g3 {[%clk 0:01:20]}  Nb4 {[%clk 0:01:43]} 27. Rfd1 {[%clk 0:01:18]}  Qd7 {[%clk 0:01:41]} 28. Rxd4 {[%clk 0:01:15]}  cxd4 {[%clk 0:01:41]} 29. Qc4 {[%clk 0:01:12]}  Nd5 {[%clk 0:01:30]} 30. Qxd4 {[%clk 0:01:11]}  Rc8 {[%clk 0:01:30]} 31. Rd1 {[%clk 0:01:10]}  Rc2 {[%clk 0:01:26]} 32. Nxe6+ {[%clk 0:01:05]}  Qxe6 {[%clk 0:01:24]} 33. Qxd5 {[%clk 0:01:06]}  Qxd5 {[%clk 0:01:23]} 34. Rxd5 {[%clk 0:01:07]}  Rxb2 {[%clk 0:01:24]} 35. Rd7+ {[%clk 0:01:07]}  Kf8 {[%clk 0:01:24]} 36. a6 {[%clk 0:01:07]}  bxa6 {[%clk 0:01:23]} 37. Rxa7 {[%clk 0:01:06]}  Ra2 {[%clk 0:01:24]} 38. g4 {[%clk 0:01:01]}  a5 {[%clk 0:01:21]} 39. gxf5 {[%clk 0:00:59]}  gxf5 {[%clk 0:01:22]} 40. h4 {[%clk 0:01:00]}  Ra4 {[%clk 0:01:20]} 41. h5 {[%clk 0:00:53]}  Rxf4 {[%clk 0:01:20]} 42. h6 {[%clk 0:00:53]}  Rh4 {[%clk 0:01:13]} 43. h7 {[%clk 0:00:52]}  a4 {[%clk 0:01:04]} 44. e6 {[%clk 0:00:52]}  a3 {[%clk 0:01:03]} 45. e7+ {[%clk 0:00:41]}  Kf7 {[%clk 0:01:02]} 46. e8=Q+ {[%clk 0:00:32]}  Kxe8 {[%clk 0:01:02]} 47. Ra8+ {[%clk 0:00:32]}  Kd7 {[%clk 0:01:03]} 48. h8=Q {[%clk 0:00:32]}  Rg4+ {[%clk 0:01:04]} 49. Kf2 {[%clk 0:00:30]}  Ke6 {[%clk 0:01:04]} 50. Re8+ {[%clk 0:00:29]}  Kd5 {[%clk 0:01:04]} 51. Qe5+ {[%clk 0:00:29]}  Kc4 {[%clk 0:01:05]} 52. Rc8+ {[%clk 0:00:28]}  Kb3 {[%clk 0:01:04]} 53. Qc3+ {[%clk 0:00:26]}  Ka2 {[%clk 0:01:03]} 54. Qc2+ {[%clk 0:00:26]}  Ka1 {[%clk 0:01:04]} 55. Qxf5 {[%clk 0:00:24]}  Rb4 {[%clk 0:01:03]} 56. Rc1+ {[%clk 0:00:22]}  Ka2 {[%clk 0:01:03]} 57. Qc2+ {[%clk 0:00:22]}  Rb2 {[%clk 0:01:03]} 58. Ke2 {[%clk 0:00:20]}  Rxc2+ {[%clk 0:01:03]} 59. Rxc2+ {[%clk 0:00:21]}  Kb1 {[%clk 0:01:03]} 60. Kd3 {[%clk 0:00:18]}  a2 {[%clk 0:01:04]} 61. Rh2 {[%clk 0:00:18]}  a1=Q {[%clk 0:01:02]} 62. Rh1+ {[%clk 0:00:19]}  Kb2 {[%clk 0:01:03]} 63. Rxa1 {[%clk 0:00:19]}  Kxa1 {[%clk 0:01:03]} 1/2-1/2


[Site "https://www.chess.com"]

[Event "Titled Tuesday Blitz November 01 Early 2022"]
[White "Vasques, Antonio Pedro Freixial"]
[Black "Laohawirapap, Prin"]
[WhiteFideId "1908332"]
[BlackFideId "6205003"]
[WhiteElo "2243"]
[BlackElo "2113"]
[Result "0-1"]
[Round "02"]
[TimeControl "180+1"]
[Date "2022.11.02"]
[WhiteClock "0:00:36"]
[BlackClock "0:01:52"]

1. e4 {[%clk 0:02:58]}  e6 {[%clk 0:02:59]} 2. d4 {[%clk 0:02:57]}  d5 {[%clk 0:02:59]} 3. Nc3 {[%clk 0:02:55]}  Bb4 {[%clk 0:02:57]} 4. e5 {[%clk 0:02:55]}  c5 {[%clk 0:02:56]} 5. a3 {[%clk 0:02:55]}  Bxc3+ {[%clk 0:02:56]} 6. bxc3 {[%clk 0:02:56]}  Ne7 {[%clk 0:02:56]} 7. h4 {[%clk 0:02:55]}  b6 {[%clk 0:02:55]} 8. h5 {[%clk 0:02:52]}  h6 {[%clk 0:02:54]} 9. Nh3 {[%clk 0:02:47]}  Ba6 {[%clk 0:02:54]} 10. Nf4 {[%clk 0:02:46]}  Qd7 {[%clk 0:02:47]} 11. g3 {[%clk 0:02:42]}  Bxf1 {[%clk 0:02:46]} 12. Kxf1 {[%clk 0:02:42]}  Nbc6 {[%clk 0:02:45]} 13. Ng2 {[%clk 0:02:35]}  Rc8 {[%clk 0:02:44]} 14. Ne3 {[%clk 0:02:34]}  Na5 {[%clk 0:02:43]} 15. Kg2 {[%clk 0:02:23]}  Qa4 {[%clk 0:02:42]} 16. Qg4 {[%clk 0:01:56]}  O-O {[%clk 0:02:33]} 17. Ra2 {[%clk 0:01:38]}  Kh7 {[%clk 0:02:29]} 18. f4 {[%clk 0:01:30]}  cxd4 {[%clk 0:02:27]} 19. f5 {[%clk 0:01:28]}  Nc4 {[%clk 0:02:09]} 20. f6 {[%clk 0:01:04]}  gxf6 {[%clk 0:02:09]} 21. exf6 {[%clk 0:01:03]}  Rg8 {[%clk 0:02:09]} 22. Qxd4 {[%clk 0:01:00]}  Nxe3+ {[%clk 0:02:04]} 23. Bxe3 {[%clk 0:00:59]}  Qxd4 {[%clk 0:02:00]} 24. Bxd4 {[%clk 0:01:00]}  Nf5 {[%clk 0:02:00]} 25. Be5 {[%clk 0:01:01]}  Rc4 {[%clk 0:01:56]} 26. a4 {[%clk 0:00:58]}  Re4 {[%clk 0:01:54]} 27. Bc7 {[%clk 0:00:49]}  e5 {[%clk 0:01:52]} 28. Rf1 {[%clk 0:00:36]}  Ne3+ {[%clk 0:01:52]} 0-1


[Site "https://www.chess.com"]

[Event "Titled Tuesday Blitz November 01 Early 2022"]
[White "Velikanov, Alexander"]
[Black "Paravyan, David"]
[WhiteFideId "2039290"]
[BlackFideId "4194985"]
[WhiteElo "2259"]
[BlackElo "2555"]
[Result "1-0"]
[Round "02"]
[TimeControl "180+1"]
[Date "2022.11.01"]
[WhiteClock "0:00:04"]
[BlackClock "0:00:01"]

1. e4 {[%clk 0:03:00]}  e5 {[%clk 0:02:59]} 2. Nf3 {[%clk 0:03:00]}  Nf6 {[%clk 0:03:00]} 3. d3 {[%clk 0:02:53]}  Nc6 {[%clk 0:02:59]} 4. c3 {[%clk 0:02:51]}  d5 {[%clk 0:02:59]} 5. Qc2 {[%clk 0:02:51]}  a5 {[%clk 0:02:59]} 6. Be2 {[%clk 0:02:50]}  Bc5 {[%clk 0:03:00]} 7. O-O {[%clk 0:02:50]}  O-O {[%clk 0:03:00]} 8. a4 {[%clk 0:02:47]}  Re8 {[%clk 0:03:00]} 9. Nbd2 {[%clk 0:02:45]}  Ba7 {[%clk 0:02:55]} 10. exd5 {[%clk 0:02:40]}  Nxd5 {[%clk 0:02:56]} 11. Nc4 {[%clk 0:02:40]}  h6 {[%clk 0:02:54]} 12. Be3 {[%clk 0:02:40]}  Nxe3 {[%clk 0:02:54]} 13. fxe3 {[%clk 0:02:41]}  Be6 {[%clk 0:02:54]} 14. d4 {[%clk 0:02:39]}  exd4 {[%clk 0:02:50]} 15. exd4 {[%clk 0:02:40]}  Bd5 {[%clk 0:02:43]} 16. Kh1 {[%clk 0:02:28]}  Be4 {[%clk 0:02:25]} 17. Bd3 {[%clk 0:02:22]}  Qd5 {[%clk 0:02:22]} 18. Ne3 {[%clk 0:02:15]}  Bxd3 {[%clk 0:02:21]} 19. Qxd3 {[%clk 0:02:16]}  Qe4 {[%clk 0:02:21]} 20. Qxe4 {[%clk 0:02:13]}  Rxe4 {[%clk 0:02:22]} 21. Nd5 {[%clk 0:02:10]}  Bb6 {[%clk 0:02:20]} 22. Rae1 {[%clk 0:02:04]}  Rxe1 {[%clk 0:02:16]} 23. Rxe1 {[%clk 0:02:05]}  Kf8 {[%clk 0:02:17]} 24. Kg1 {[%clk 0:02:02]}  Rd8 {[%clk 0:02:16]} 25. Nxb6 {[%clk 0:02:00]}  cxb6 {[%clk 0:02:17]} 26. Ne5 {[%clk 0:01:57]}  Ne7 {[%clk 0:01:30]} 27. Nc4 {[%clk 0:01:56]}  Nd5 {[%clk 0:01:30]} 28. Re5 {[%clk 0:01:56]}  Rd7 {[%clk 0:01:18]} 29. Kf2 {[%clk 0:01:53]}  f6 {[%clk 0:01:05]} 30. Re6 {[%clk 0:01:49]}  Kf7 {[%clk 0:01:05]} 31. Rd6 {[%clk 0:01:45]}  Ke7 {[%clk 0:01:05]} 32. Rxd7+ {[%clk 0:01:40]}  Kxd7 {[%clk 0:01:06]} 33. Kf3 {[%clk 0:01:14]}  f5 {[%clk 0:01:04]} 34. h4 {[%clk 0:01:10]}  g5 {[%clk 0:01:00]} 35. h5 {[%clk 0:00:53]}  Ke6 {[%clk 0:01:00]} 36. g3 {[%clk 0:00:52]}  g4+ {[%clk 0:00:48]} 37. Kf2 {[%clk 0:00:51]}  Kf6 {[%clk 0:00:14]} 38. Nd6 {[%clk 0:00:51]}  Kg5 {[%clk 0:00:10]} 39. Nxb7 {[%clk 0:00:51]}  Kxh5 {[%clk 0:00:11]} 40. c4 {[%clk 0:00:51]}  Nb4 {[%clk 0:00:06]} 41. d5 {[%clk 0:00:47]}  Nd3+ {[%clk 0:00:05]} 42. Ke3 {[%clk 0:00:47]}  Ne5 {[%clk 0:00:05]} 43. Kf4 {[%clk 0:00:40]}  Nf7 {[%clk 0:00:01]} 44. Kxf5 {[%clk 0:00:39]}  b5 {[%clk 0:00:01]} 45. axb5 {[%clk 0:00:38]}  a4 {[%clk 0:00:01]} 46. Kf6 {[%clk 0:00:31]}  a3 {[%clk 0:00:01]} 47. bxa3 {[%clk 0:00:30]}  Nd6 {[%clk 0:00:02]} 48. c5 {[%clk 0:00:22]}  Ne4+ {[%clk 0:00:01]} 49. Ke5 {[%clk 0:00:20]}  Nxg3 {[%clk 0:00:02]} 50. d6 {[%clk 0:00:18]}  Nf5 {[%clk 0:00:01]} 51. Kxf5 {[%clk 0:00:17]}  g3 {[%clk 0:00:02]} 52. d7 {[%clk 0:00:17]}  g2 {[%clk 0:00:03]} 53. d8=Q {[%clk 0:00:17]}  g1=Q {[%clk 0:00:04]} 54. Qe8+ {[%clk 0:00:16]}  Kh4 {[%clk 0:00:04]} 55. Qe4+ {[%clk 0:00:16]}  Kh5 {[%clk 0:00:04]} 56. Qf3+ {[%clk 0:00:14]}  Kh4 {[%clk 0:00:04]} 57. Nd6 {[%clk 0:00:08]}  h5 {[%clk 0:00:03]} 58. Qe4+ {[%clk 0:00:05]}  Kh3 {[%clk 0:00:03]} 59. Qf3+ {[%clk 0:00:05]}  Kh4 {[%clk 0:00:03]} 60. Ke4 {[%clk 0:00:04]}  Qxc5 {[%clk 0:00:01]} 61. Nf5+ {[%clk 0:00:04]}  Kg5 {[%clk 0:00:01]} 62. Qg3+ {[%clk 0:00:04]}  Kf6 {[%clk 0:00:01]} 63. Qd6+ {[%clk 0:00:04]} 1-0


[Site "https://www.chess.com"]

[Event "Titled Tuesday Blitz November 01 Early 2022"]
[White "Vrbljanac, Aleksandar"]
[Black "Xiong, Jeffery"]
[WhiteFideId "932817"]
[BlackFideId "2047640"]
[WhiteElo "2309"]
[BlackElo "2725"]
[Result "1-0"]
[Round "02"]
[TimeControl "180+1"]
[Date "2022.11.01"]
[WhiteClock "0:02:15"]
[BlackClock "0:02:37"]

1. e4 {[%clk 0:02:57]}  c6 {[%clk 0:02:58]} 2. Nf3 {[%clk 0:02:56]}  d5 {[%clk 0:02:58]} 3. Nc3 {[%clk 0:02:57]}  dxe4 {[%clk 0:02:56]} 4. Nxe4 {[%clk 0:02:58]}  Nd7 {[%clk 0:02:56]} 5. Qe2 {[%clk 0:02:58]}  Qc7 {[%clk 0:02:49]} 6. d4 {[%clk 0:02:56]}  Ngf6 {[%clk 0:02:49]} 7. c3 {[%clk 0:02:50]}  g6 {[%clk 0:02:43]} 8. g3 {[%clk 0:02:42]}  Nxe4 {[%clk 0:02:43]} 9. Qxe4 {[%clk 0:02:42]}  Nf6 {[%clk 0:02:44]} 10. Qc2 {[%clk 0:02:43]}  Bf5 {[%clk 0:02:40]} 11. Qb3 {[%clk 0:02:42]}  Be4 {[%clk 0:02:37]} 12. Bg2 {[%clk 0:02:42]}  c5 {[%clk 0:02:38]} 13. dxc5 {[%clk 0:02:39]}  Qxc5 {[%clk 0:02:36]} 14. O-O {[%clk 0:02:39]}  Bg7 {[%clk 0:02:36]} 15. Be3 {[%clk 0:02:20]}  Qh5 {[%clk 0:02:36]} 16. Ng5 {[%clk 0:02:15]}  Bxg2 {[%clk 0:02:37]} 17. Qxf7+ {[%clk 0:02:15]} 1-0


[Site "https://www.chess.com"]

[Event "Titled Tuesday Blitz November 01 Early 2022"]
[White "Weetik, Vjacheslav"]
[Black "Sailer, Mike"]
[WhiteFideId "4153472"]
[BlackFideId "2012901"]
[WhiteElo "2469"]
[BlackElo "2109"]
[Result "1-0"]
[Round "02"]
[TimeControl "180+1"]
[Date "2022.11.02"]
[WhiteClock "0:00:19"]
[BlackClock "0:00:19"]

1. d4 {[%clk 0:02:55]}  d5 {[%clk 0:02:59]} 2. c4 {[%clk 0:02:52]}  Bf5 {[%clk 0:02:59]} 3. Nc3 {[%clk 0:02:51]}  e6 {[%clk 0:03:00]} 4. Nf3 {[%clk 0:02:45]}  Nc6 {[%clk 0:03:00]} 5. cxd5 {[%clk 0:02:31]}  exd5 {[%clk 0:03:00]} 6. Bf4 {[%clk 0:02:25]}  Nf6 {[%clk 0:02:56]} 7. e3 {[%clk 0:02:21]}  Bb4 {[%clk 0:02:56]} 8. Bd3 {[%clk 0:02:15]}  Bxd3 {[%clk 0:02:55]} 9. Qxd3 {[%clk 0:02:14]}  O-O {[%clk 0:02:55]} 10. O-O {[%clk 0:02:13]}  Re8 {[%clk 0:02:49]} 11. Bg5 {[%clk 0:02:01]}  Bxc3 {[%clk 0:02:45]} 12. bxc3 {[%clk 0:01:57]}  Qd6 {[%clk 0:02:43]} 13. c4 {[%clk 0:01:49]}  dxc4 {[%clk 0:02:40]} 14. Qxc4 {[%clk 0:01:47]}  Ne4 {[%clk 0:02:36]} 15. Bf4 {[%clk 0:01:45]}  Qd7 {[%clk 0:02:20]} 16. Rfc1 {[%clk 0:01:42]}  Re7 {[%clk 0:02:03]} 17. Rab1 {[%clk 0:01:36]}  Rc8 {[%clk 0:01:29]} 18. h3 {[%clk 0:01:18]}  Nd8 {[%clk 0:01:25]} 19. Ne5 {[%clk 0:01:12]}  Qe6 {[%clk 0:01:09]} 20. d5 {[%clk 0:00:53]}  Qf5 {[%clk 0:01:06]} 21. g4 {[%clk 0:00:53]}  Qxe5 {[%clk 0:00:52]} 22. Bxe5 {[%clk 0:00:52]}  Rxe5 {[%clk 0:00:52]} 23. Qd4 {[%clk 0:00:49]}  Re8 {[%clk 0:00:48]} 24. Qxa7 {[%clk 0:00:29]}  Nf6 {[%clk 0:00:40]} 25. d6 {[%clk 0:00:27]}  c6 {[%clk 0:00:39]} 26. Rd1 {[%clk 0:00:24]}  Nd7 {[%clk 0:00:33]} 27. a4 {[%clk 0:00:22]}  c5 {[%clk 0:00:21]} 28. a5 {[%clk 0:00:20]}  Nc6 {[%clk 0:00:21]} 29. Qxb7 {[%clk 0:00:20]}  Nde5 {[%clk 0:00:19]} 30. d7 {[%clk 0:00:19]} 1-0


[Site "https://www.chess.com"]